[Event "*** Titled Tuesday Blitz"]
[Site "Chess.com"]
[Date "2019.08.06"]
[Round "2"]
[White "moro182"]
[Black "DiogenesSinopeus"]
[Result "1-0"]
[WhiteElo "2812"]
[BlackElo "2399"]
[TimeControl "180+2"]
[EndTime "13:16:20 PDT"]
[Termination "moro182 won by resignation"]

1. d4 {[%clk 0:03:01.9]} 1... Nf6 {[%clk 0:03:00]} 2. c4 {[%clk 0:03:03.8]} 2...
e6 {[%clk 0:02:59.3]} 3. Nc3 {[%clk 0:03:04.1]} 3... Bb4 {[%clk 0:03:00.3]} 4.
e3 {[%clk 0:03:05.7]} 4... O-O {[%clk 0:03:00.9]} 5. Bd3 {[%clk 0:03:07.3]} 5...
d5 {[%clk 0:03:00.4]} 6. Nf3 {[%clk 0:03:08.3]} 6... c5 {[%clk 0:03:01.5]} 7.
O-O {[%clk 0:03:09.4]} 7... Nc6 {[%clk 0:03:02.8]} 8. a3 {[%clk 0:03:09.2]} 8...
Ba5 {[%clk 0:03:04.2]} 9. cxd5 {[%clk 0:03:03.8]} 9... exd5 {[%clk 0:03:06.1]}
10. dxc5 {[%clk 0:03:04.8]} 10... Bxc3 {[%clk 0:03:06.6]} 11. bxc3 {[%clk
0:03:06.7]} 11... Bg4 {[%clk 0:03:07.7]} 12. Be2 {[%clk 0:03:04.6]} 12... Qa5
{[%clk 0:02:59.6]} 13. Bb2 {[%clk 0:03:04.8]} 13... Qxc5 {[%clk 0:02:57.9]} 14.
Rc1 {[%clk 0:03:06.3]} 14... b5 {[%clk 0:02:52.1]} 15. a4 {[%clk 0:03:00.3]}
15... a6 {[%clk 0:02:49.6]} 16. Qb3 {[%clk 0:02:59.1]} 16... Rab8 {[%clk
0:02:46.9]} 17. Ba3 {[%clk 0:02:59.1]} 1-0

[Event "*** Titled Tuesday Blitz"]
[Site "Chess.com"]
[Date "2019.08.06"]
[Round "2"]
[White "PNEPaul"]
[Black "Msb2"]
[Result "0-1"]
[WhiteElo "1749"]
[BlackElo "2863"]
[TimeControl "180+2"]
[EndTime "13:16:43 PDT"]
[Termination "Msb2 won by resignation"]

1. e4 {[%clk 0:03:01.9]} 1... c6 {[%clk 0:03:00.6]} 2. d4 {[%clk 0:03:01.3]}
2... d5 {[%clk 0:03:02.1]} 3. e5 {[%clk 0:03:02.5]} 3... Bf5 {[%clk 0:03:02.7]}
4. Nc3 {[%clk 0:03:03.5]} 4... e6 {[%clk 0:03:03.6]} 5. g4 {[%clk 0:03:04.4]}
5... Bg6 {[%clk 0:03:05.1]} 6. Nge2 {[%clk 0:03:05.5]} 6... c5 {[%clk
0:03:01.7]} 7. h4 {[%clk 0:03:05.8]} 7... h5 {[%clk 0:03:02.5]} 8. Nf4 {[%clk
0:03:06.2]} 8... Bh7 {[%clk 0:03:04]} 9. g5 {[%clk 0:03:04.4]} 9... Nc6 {[%clk
0:03:01.4]} 10. Bb5 {[%clk 0:03:00.2]} 10... Bf5 {[%clk 0:02:58.4]} 11. O-O
{[%clk 0:02:53.9]} 11... Ne7 {[%clk 0:02:52.3]} 12. dxc5 {[%clk 0:02:52.3]}
12... Ng6 {[%clk 0:02:51.2]} 13. Nxg6 {[%clk 0:02:48.6]} 13... fxg6 {[%clk
0:02:49.4]} 14. f4 {[%clk 0:02:48.6]} 14... Bxc5+ {[%clk 0:02:50.2]} 15. Kg2
{[%clk 0:02:49.1]} 15... O-O {[%clk 0:02:51.2]} 16. a3 {[%clk 0:02:41.2]} 16...
d4 {[%clk 0:02:47.3]} 17. Na4 {[%clk 0:02:35.3]} 17... Be7 {[%clk 0:02:46.1]}
18. Bd3 {[%clk 0:02:35.3]} 18... b5 {[%clk 0:02:37.6]} 19. Bxb5 {[%clk 0:02:30]}
19... Qd5+ {[%clk 0:02:36.7]} 20. Qf3 {[%clk 0:02:28]} 20... Qxb5 {[%clk
0:02:37.6]} 0-1

[Event "*** Titled Tuesday Blitz"]
[Site "Chess.com"]
[Date "2019.08.06"]
[Round "2"]
[White "GuerrieroFromLevant"]
[Black "Infernal_XaM"]
[Result "0-1"]
[WhiteElo "2380"]
[BlackElo "2832"]
[TimeControl "180+2"]
[EndTime "13:16:56 PDT"]
[Termination "Infernal_XaM won by resignation"]

1. e4 {[%clk 0:03:01.9]} 1... e5 {[%clk 0:03:00.1]} 2. Nf3 {[%clk 0:03:02.4]}
2... Nf6 {[%clk 0:03:01]} 3. Nxe5 {[%clk 0:03:02.3]} 3... Nxe4 {[%clk 0:03:02]}
4. Qe2 {[%clk 0:03:00.1]} 4... Qe7 {[%clk 0:03:03.1]} 5. d4 {[%clk 0:03:00.4]}
5... d6 {[%clk 0:02:50.9]} 6. Qxe4 {[%clk 0:03:00.3]} 6... dxe5 {[%clk
0:02:52.1]} 7. Qxe5 {[%clk 0:03:01.4]} 7... Qxe5+ {[%clk 0:02:51.3]} 8. dxe5
{[%clk 0:03:01.8]} 8... Nc6 {[%clk 0:02:52.9]} 9. Bb5 {[%clk 0:03:01.7]} 9...
Bd7 {[%clk 0:02:53.7]} 10. O-O {[%clk 0:02:56.1]} 10... O-O-O {[%clk 0:02:49.1]}
11. Bxc6 {[%clk 0:02:50.7]} 11... Bxc6 {[%clk 0:02:50.1]} 12. Nc3 {[%clk
0:02:48.7]} 12... Bb4 {[%clk 0:02:49.7]} 13. Bg5 {[%clk 0:02:47.9]} 13... Rd4
{[%clk 0:02:44.3]} 14. Rad1 {[%clk 0:02:46.1]} 14... Rg4 {[%clk 0:02:44.2]} 15.
g3 {[%clk 0:02:19.2]} 15... Rxg5 {[%clk 0:02:39.1]} 16. f4 {[%clk 0:02:20.4]}
16... Bc5+ {[%clk 0:02:35.6]} 17. Rf2 {[%clk 0:02:19.4]} 17... Rh5 {[%clk
0:02:36.8]} 18. Nd5 {[%clk 0:02:14.1]} 18... Bxf2+ {[%clk 0:02:35.4]} 0-1

[Event "*** Titled Tuesday Blitz"]
[Site "Chess.com"]
[Date "2019.08.06"]
[Round "2"]
[White "Guriempire"]
[Black "sergoy"]
[Result "0-1"]
[WhiteElo "2616"]
[BlackElo "2848"]
[TimeControl "180+2"]
[EndTime "13:18:33 PDT"]
[Termination "sergoy won by resignation"]

1. Nf3 {[%clk 0:03:01.9]} 1... d5 {[%clk 0:02:58.9]} 2. g3 {[%clk 0:02:56]} 2...
Nf6 {[%clk 0:02:58.9]} 3. Bg2 {[%clk 0:02:57.5]} 3... g6 {[%clk 0:03:00]} 4. c4
{[%clk 0:02:54.1]} 4... d4 {[%clk 0:02:48.5]} 5. O-O {[%clk 0:02:53.2]} 5... Bg7
{[%clk 0:02:49.3]} 6. d3 {[%clk 0:02:50.8]} 6... c5 {[%clk 0:02:47.6]} 7. e3
{[%clk 0:02:51.8]} 7... Nc6 {[%clk 0:02:31.3]} 8. exd4 {[%clk 0:02:52.1]} 8...
cxd4 {[%clk 0:02:33.2]} 9. a3 {[%clk 0:02:50.4]} 9... a5 {[%clk 0:02:33.9]} 10.
Bg5 {[%clk 0:02:48]} 10... O-O {[%clk 0:02:33.9]} 11. Re1 {[%clk 0:02:46.3]}
11... Nd7 {[%clk 0:02:23.6]} 12. Qc1 {[%clk 0:02:40.9]} 12... Nc5 {[%clk
0:02:21.7]} 13. Qc2 {[%clk 0:02:23.3]} 13... h6 {[%clk 0:02:19.6]} 14. Bc1
{[%clk 0:02:22.9]} 14... Bf5 {[%clk 0:02:17.6]} 15. Bf1 {[%clk 0:02:23.8]} 15...
e5 {[%clk 0:02:14.6]} 16. Nh4 {[%clk 0:02:23.4]} 16... Bg4 {[%clk 0:02:06.7]}
17. Nd2 {[%clk 0:02:21.7]} 17... g5 {[%clk 0:02:01.5]} 18. Ne4 {[%clk
0:02:13.6]} 18... Nxe4 {[%clk 0:01:43.5]} 19. Rxe4 {[%clk 0:02:15.5]} 19... f5
{[%clk 0:01:44.8]} 20. Rxg4 {[%clk 0:02:14.3]} 20... fxg4 {[%clk 0:01:46.7]} 21.
Ng2 {[%clk 0:02:11.7]} 21... e4 {[%clk 0:01:48.1]} 22. dxe4 {[%clk 0:02:06.7]}
22... Ne5 {[%clk 0:01:43.5]} 23. Ne1 {[%clk 0:02:06.8]} 23... Qf6 {[%clk
0:01:36.7]} 24. Be2 {[%clk 0:02:02.7]} 0-1

[Event "*** Titled Tuesday Blitz"]
[Site "Chess.com"]
[Date "2019.08.06"]
[Round "2"]
[White "krzyzan94"]
[Black "nOcHeaTiNgKiD"]
[Result "1-0"]
[WhiteElo "2764"]
[BlackElo "2445"]
[TimeControl "180+2"]
[EndTime "13:18:51 PDT"]
[Termination "krzyzan94 won by resignation"]

1. d4 {[%clk 0:03:01.9]} 1... Nf6 {[%clk 0:03:00]} 2. Nc3 {[%clk 0:03:01.7]}
2... d5 {[%clk 0:03:00]} 3. Bf4 {[%clk 0:03:02.5]} 3... a6 {[%clk 0:03:00.7]} 4.
Qd3 {[%clk 0:03:01.2]} 4... g6 {[%clk 0:02:53.8]} 5. e4 {[%clk 0:02:57.6]} 5...
dxe4 {[%clk 0:02:51.8]} 6. Nxe4 {[%clk 0:02:59.5]} 6... Bg7 {[%clk 0:02:52.5]}
7. O-O-O {[%clk 0:02:59.6]} 7... Bf5 {[%clk 0:02:50.5]} 8. Nxf6+ {[%clk
0:02:59.1]} 8... Bxf6 {[%clk 0:02:51.5]} 9. Qf3 {[%clk 0:03:00.6]} 9... Nc6
{[%clk 0:02:43.1]} 10. c3 {[%clk 0:02:56.2]} 10... O-O {[%clk 0:02:40.1]} 11. g4
{[%clk 0:02:54.8]} 11... Bd7 {[%clk 0:02:35.1]} 12. h4 {[%clk 0:02:55.8]} 12...
Qc8 {[%clk 0:02:30.8]} 13. Bh3 {[%clk 0:02:53.8]} 13... e5 {[%clk 0:02:28.6]}
14. Bh6 {[%clk 0:02:55]} 14... Bg7 {[%clk 0:02:26.2]} 15. Bxg7 {[%clk
0:02:56.3]} 15... Kxg7 {[%clk 0:02:27.5]} 16. h5 {[%clk 0:02:55.6]} 16... f6
{[%clk 0:02:08.1]} 17. hxg6 {[%clk 0:02:48.5]} 17... hxg6 {[%clk 0:02:08.8]} 18.
Ne2 {[%clk 0:02:34.5]} 18... exd4 {[%clk 0:02:01.1]} 19. cxd4 {[%clk 0:02:36.4]}
19... Nb4 {[%clk 0:01:59.1]} 20. d5 {[%clk 0:02:30.8]} 20... c5 {[%clk
0:01:46.5]} 21. g5 {[%clk 0:02:26.2]} 21... Bxh3 {[%clk 0:01:34.7]} 22. Rxh3
{[%clk 0:02:28.1]} 22... Qf5 {[%clk 0:01:28.4]} 23. Qxf5 {[%clk 0:02:25.7]}
23... gxf5 {[%clk 0:01:29.5]} 24. a3 {[%clk 0:02:24.8]} 24... fxg5 {[%clk
0:01:26.6]} 25. axb4 {[%clk 0:02:25]} 25... cxb4 {[%clk 0:01:28]} 26. Rg1 {[%clk
0:02:25.6]} 26... Kf6 {[%clk 0:01:27.9]} 27. Rh6+ {[%clk 0:02:25.7]} 27... Ke5
{[%clk 0:01:28.8]} 28. Rxg5 {[%clk 0:02:26.7]} 28... Kxd5 {[%clk 0:01:30.3]} 29.
Ng3 {[%clk 0:02:24.6]} 29... Rac8+ {[%clk 0:01:28.4]} 30. Kd2 {[%clk 0:02:25.6]}
30... b3 {[%clk 0:01:29.4]} 31. Nxf5 {[%clk 0:02:25]} 31... Rc2+ {[%clk
0:01:30.2]} 32. Kd3 {[%clk 0:02:26.5]} 1-0

[Event "*** Titled Tuesday Blitz"]
[Site "Chess.com"]
[Date "2019.08.06"]
[Round "2"]
[White "kasparicy"]
[Black "Muracle"]
[Result "0-1"]
[WhiteElo "2408"]
[BlackElo "2633"]
[TimeControl "180+2"]
[EndTime "13:19:07 PDT"]
[Termination "Muracle won by checkmate"]

1. e4 {[%clk 0:03:01.9]} 1... c5 {[%clk 0:02:58.5]} 2. Nf3 {[%clk 0:03:02.7]}
2... Nc6 {[%clk 0:02:59.1]} 3. d4 {[%clk 0:03:03.9]} 3... cxd4 {[%clk
0:03:00.3]} 4. Nxd4 {[%clk 0:03:05.8]} 4... e5 {[%clk 0:02:59.6]} 5. Ne2 {[%clk
0:03:05.6]} 5... Nf6 {[%clk 0:03:00]} 6. Nbc3 {[%clk 0:03:07.1]} 6... Bb4 {[%clk
0:03:00.1]} 7. a3 {[%clk 0:03:08.5]} 7... Be7 {[%clk 0:03:00.3]} 8. Ng3 {[%clk
0:03:08.9]} 8... O-O {[%clk 0:03:01.2]} 9. Bc4 {[%clk 0:03:07.6]} 9... Nd4
{[%clk 0:03:01.8]} 10. O-O {[%clk 0:03:06.7]} 10... d6 {[%clk 0:03:02.7]} 11.
Be3 {[%clk 0:03:07.2]} 11... Ne6 {[%clk 0:03:03.5]} 12. Nf5 {[%clk 0:02:56.6]}
12... Nf4 {[%clk 0:02:58.1]} 13. Nxe7+ {[%clk 0:02:52.2]} 13... Qxe7 {[%clk
0:03:00]} 14. Bxf4 {[%clk 0:02:53.8]} 14... exf4 {[%clk 0:03:00.9]} 15. Nd5
{[%clk 0:02:48.2]} 15... Qe5 {[%clk 0:02:55.8]} 16. Nxf6+ {[%clk 0:02:43.6]}
16... Qxf6 {[%clk 0:02:57.7]} 17. Qf3 {[%clk 0:02:39.1]} 17... Qxb2 {[%clk
0:02:53.8]} 18. Bb3 {[%clk 0:02:37.1]} 18... Qe5 {[%clk 0:02:53.4]} 19. Rad1
{[%clk 0:02:38.2]} 19... Be6 {[%clk 0:02:54.3]} 20. Rd2 {[%clk 0:02:33.1]} 20...
Rac8 {[%clk 0:02:54]} 21. Rfd1 {[%clk 0:02:33.5]} 21... Rc3 {[%clk 0:02:54.9]}
22. Rd3 {[%clk 0:02:31.3]} 22... Rfc8 {[%clk 0:02:53.5]} 23. h3 {[%clk
0:02:26.5]} 23... g6 {[%clk 0:02:52.8]} 24. Qe2 {[%clk 0:02:08.3]} 24... Bxb3
{[%clk 0:02:39.8]} 25. cxb3 {[%clk 0:02:10.2]} 25... Rc1 {[%clk 0:02:38.3]} 26.
f3 {[%clk 0:01:56.6]} 26... R8c2 {[%clk 0:02:29.8]} 27. Rd2 {[%clk 0:01:51]}
27... Qa1 {[%clk 0:02:28.9]} 28. Rxc2 {[%clk 0:01:17.8]} 28... Rxd1+ {[%clk
0:02:21.8]} 29. Kf2 {[%clk 0:01:18.5]} 29... Rh1 {[%clk 0:02:22.5]} 30. Qd2
{[%clk 0:01:16]} 30... Qg1+ {[%clk 0:02:21.7]} 31. Ke2 {[%clk 0:01:16.5]} 31...
Qf1# {[%clk 0:02:23]} 0-1

[Event "*** Titled Tuesday Blitz"]
[Site "Chess.com"]
[Date "2019.08.06"]
[Round "2"]
[White "Doraemon7"]
[Black "GHANDEEVAM2003"]
[Result "0-1"]
[WhiteElo "2635"]
[BlackElo "2955"]
[TimeControl "180+2"]
[EndTime "13:19:14 PDT"]
[Termination "GHANDEEVAM2003 won by resignation"]

1. Nf3 {[%clk 0:03:01.9]} 1... d5 {[%clk 0:02:59.3]} 2. d4 {[%clk 0:03:01.3]}
2... Nf6 {[%clk 0:02:58.1]} 3. c4 {[%clk 0:03:02.5]} 3... e6 {[%clk 0:02:59.6]}
4. g3 {[%clk 0:03:03.4]} 4... dxc4 {[%clk 0:02:58.8]} 5. Bg2 {[%clk 0:03:04]}
5... Nc6 {[%clk 0:03:00.1]} 6. O-O {[%clk 0:03:03.7]} 6... a6 {[%clk 0:03:01.2]}
7. Nc3 {[%clk 0:03:04.8]} 7... Rb8 {[%clk 0:03:00.6]} 8. e4 {[%clk 0:02:44.1]}
8... Be7 {[%clk 0:02:59.7]} 9. d5 {[%clk 0:02:32.7]} 9... exd5 {[%clk 0:02:54]}
10. e5 {[%clk 0:02:24.8]} 10... Ng4 {[%clk 0:02:43]} 11. Nxd5 {[%clk 0:02:22]}
11... Be6 {[%clk 0:02:44.1]} 12. Nxe7 {[%clk 0:01:42.4]} 12... Qxe7 {[%clk
0:02:38.8]} 13. Qe2 {[%clk 0:01:23.1]} 13... Bd5 {[%clk 0:02:17.6]} 14. Re1
{[%clk 0:01:09.5]} 14... Bxf3 {[%clk 0:02:07.3]} 15. Bxf3 {[%clk 0:01:03.6]}
15... Nd4 {[%clk 0:02:07.2]} 16. Qe4 {[%clk 0:00:52.4]} 16... Nxf3+ {[%clk
0:02:08.6]} 17. Qxf3 {[%clk 0:00:54.3]} 17... Nxe5 {[%clk 0:02:10]} 18. Rxe5
{[%clk 0:00:38.2]} 18... Qxe5 {[%clk 0:02:11.9]} 19. Bf4 {[%clk 0:00:39.8]}
19... Qe7 {[%clk 0:02:08]} 0-1

[Event "*** Titled Tuesday Blitz"]
[Site "Chess.com"]
[Date "2019.08.06"]
[Round "2"]
[White "ohusbands"]
[Black "TijanaBlagojevic"]
[Result "1-0"]
[WhiteElo "2591"]
[BlackElo "2343"]
[TimeControl "180+2"]
[EndTime "13:19:21 PDT"]
[Termination "ohusbands won by resignation"]

1. e4 {[%clk 0:03:01.9]} 1... e5 {[%clk 0:02:29.6]} 2. Nf3 {[%clk 0:03:02.8]}
2... Nc6 {[%clk 0:02:31.1]} 3. d3 {[%clk 0:03:04.5]} 3... Nf6 {[%clk 0:02:32.1]}
4. Nc3 {[%clk 0:03:04.9]} 4... d5 {[%clk 0:02:29]} 5. exd5 {[%clk 0:03:03.9]}
5... Nxd5 {[%clk 0:02:30.9]} 6. Be2 {[%clk 0:03:03.4]} 6... Bb4 {[%clk
0:02:25.7]} 7. Bd2 {[%clk 0:03:03.3]} 7... O-O {[%clk 0:02:17.8]} 8. O-O {[%clk
0:03:03.6]} 8... Bxc3 {[%clk 0:02:01.6]} 9. bxc3 {[%clk 0:03:04]} 9... f5 {[%clk
0:02:00.6]} 10. c4 {[%clk 0:02:51.6]} 10... Nf6 {[%clk 0:01:52.9]} 11. Bc3
{[%clk 0:02:50.7]} 11... Re8 {[%clk 0:01:47.6]} 12. Re1 {[%clk 0:02:49.1]} 12...
b6 {[%clk 0:01:44.8]} 13. Bf1 {[%clk 0:02:28.9]} 13... Qd6 {[%clk 0:01:42.9]}
14. g3 {[%clk 0:02:22.4]} 14... Bb7 {[%clk 0:01:43.7]} 15. Bg2 {[%clk
0:02:23.5]} 15... Nd7 {[%clk 0:01:44.9]} 16. Qc1 {[%clk 0:02:12.1]} 16... Rad8
{[%clk 0:01:44.4]} 17. Qb2 {[%clk 0:02:12.5]} 17... e4 {[%clk 0:01:39.4]} 18.
dxe4 {[%clk 0:02:12.1]} 18... fxe4 {[%clk 0:01:40.8]} 19. Ng5 {[%clk 0:02:06.2]}
19... e3 {[%clk 0:01:31.9]} 20. Rxe3 {[%clk 0:02:00.2]} 20... Rxe3 {[%clk
0:01:31.5]} 21. fxe3 {[%clk 0:02:02.1]} 21... Qg6 {[%clk 0:01:22.2]} 22. Bd5+
{[%clk 0:02:02.5]} 22... Kf8 {[%clk 0:01:09.1]} 23. Rf1+ {[%clk 0:02:03.2]}
23... Nf6 {[%clk 0:01:06.7]} 24. Bxf6 {[%clk 0:02:03.4]} 1-0

[Event "*** Titled Tuesday Blitz"]
[Site "Chess.com"]
[Date "2019.08.06"]
[Round "2"]
[White "SoCalJuniorChess"]
[Black "tgpgoat"]
[Result "1/2-1/2"]
[WhiteElo "1864"]
[BlackElo "1976"]
[TimeControl "180+2"]
[EndTime "13:19:48 PDT"]
[Termination "Game drawn by repetition"]

1. c4 {[%clk 0:03:01.9]} 1... e5 {[%clk 0:02:59]} 2. Nc3 {[%clk 0:03:02.5]} 2...
Nf6 {[%clk 0:02:56.8]} 3. g3 {[%clk 0:03:03.5]} 3... d5 {[%clk 0:02:57]} 4. cxd5
{[%clk 0:03:03.2]} 4... Nxd5 {[%clk 0:02:58.9]} 5. Bg2 {[%clk 0:03:03.2]} 5...
Nb6 {[%clk 0:03:00]} 6. e3 {[%clk 0:02:58.6]} 6... Be7 {[%clk 0:02:58.8]} 7.
Nge2 {[%clk 0:02:58.3]} 7... Nc6 {[%clk 0:02:57.4]} 8. d4 {[%clk 0:02:58.1]}
8... exd4 {[%clk 0:02:57.1]} 9. Nxd4 {[%clk 0:02:56.1]} 9... Nxd4 {[%clk
0:02:57.4]} 10. exd4 {[%clk 0:02:57]} 10... c6 {[%clk 0:02:57.6]} 11. a4 {[%clk
0:02:56.3]} 11... Be6 {[%clk 0:02:57]} 12. a5 {[%clk 0:02:53.7]} 12... Nd5
{[%clk 0:02:57.6]} 13. O-O {[%clk 0:02:53.1]} 13... O-O {[%clk 0:02:57.4]} 14.
a6 {[%clk 0:02:53.7]} 14... b6 {[%clk 0:02:55.9]} 15. Qa4 {[%clk 0:02:49.2]}
15... Rc8 {[%clk 0:02:55.4]} 16. Nxd5 {[%clk 0:02:47.1]} 16... cxd5 {[%clk
0:02:57.3]} 17. Bf4 {[%clk 0:02:44.8]} 17... Rc4 {[%clk 0:02:54]} 18. Qd1 {[%clk
0:02:38.6]} 18... Bf6 {[%clk 0:02:53.9]} 19. Be5 {[%clk 0:02:37.1]} 19... Bxe5
{[%clk 0:02:53.7]} 20. dxe5 {[%clk 0:02:39]} 20... Qc7 {[%clk 0:02:54.6]} 21.
Bxd5 {[%clk 0:02:38.9]} 21... Rd8 {[%clk 0:02:48]} 22. Bxc4 {[%clk 0:02:05.9]}
22... Rxd1 {[%clk 0:02:14.5]} 23. Rfxd1 {[%clk 0:02:07.8]} 23... Bxc4 {[%clk
0:02:15.2]} 24. Rac1 {[%clk 0:01:56.3]} 24... Kf8 {[%clk 0:02:03.1]} 25. b3
{[%clk 0:01:55.9]} 25... b5 {[%clk 0:02:03.6]} 26. Rd5 {[%clk 0:01:48.6]} 26...
Qc6 {[%clk 0:01:51.1]} 27. bxc4 {[%clk 0:01:44.6]} 27... bxc4 {[%clk 0:01:51.4]}
28. Rd4 {[%clk 0:01:40.8]} 28... Qxa6 {[%clk 0:01:39.9]} 29. Rdxc4 {[%clk
0:01:40.4]} 29... g6 {[%clk 0:01:40.5]} 30. Rc8+ {[%clk 0:01:33.3]} 30... Kg7
{[%clk 0:01:40.9]} 31. R1c7 {[%clk 0:01:34.9]} 31... Qa1+ {[%clk 0:01:32.6]} 32.
Kg2 {[%clk 0:01:34.3]} 32... Qxe5 {[%clk 0:01:33.4]} 33. Rxa7 {[%clk 0:01:34.8]}
33... Qe4+ {[%clk 0:01:34.6]} 34. Kg1 {[%clk 0:01:31.2]} 34... Qe1+ {[%clk
0:01:34.9]} 35. Kg2 {[%clk 0:01:32.1]} 35... Qe4+ {[%clk 0:01:35.8]} 36. Kg1
{[%clk 0:01:33.2]} 36... Qe1+ {[%clk 0:01:36.9]} 37. Kg2 {[%clk 0:01:34.3]}
37... Qe4+ {[%clk 0:01:36.7]} 1/2-1/2

[Event "*** Titled Tuesday Blitz"]
[Site "Chess.com"]
[Date "2019.08.06"]
[Round "2"]
[White "mishanick"]
[Black "Fy_Rakotomaharo"]
[Result "1-0"]
[WhiteElo "2987"]
[BlackElo "2638"]
[TimeControl "180+2"]
[EndTime "13:19:54 PDT"]
[Termination "mishanick won by resignation"]

1. d4 {[%clk 0:03:01.9]} 1... Nf6 {[%clk 0:03:00.6]} 2. Nf3 {[%clk 0:03:03.4]}
2... g6 {[%clk 0:03:01.9]} 3. c4 {[%clk 0:03:04.4]} 3... Bg7 {[%clk 0:03:02.9]}
4. Nc3 {[%clk 0:03:03.4]} 4... d5 {[%clk 0:03:03.7]} 5. cxd5 {[%clk 0:03:03.8]}
5... Nxd5 {[%clk 0:03:05.6]} 6. e4 {[%clk 0:03:05.4]} 6... Nxc3 {[%clk
0:03:06.5]} 7. bxc3 {[%clk 0:03:07.3]} 7... c5 {[%clk 0:03:08.3]} 8. Rb1 {[%clk
0:03:08.7]} 8... O-O {[%clk 0:03:06]} 9. Be2 {[%clk 0:03:10]} 9... b6 {[%clk
0:03:06.3]} 10. O-O {[%clk 0:03:05.7]} 10... e6 {[%clk 0:03:07.6]} 11. Bg5
{[%clk 0:02:58.7]} 11... Qc7 {[%clk 0:03:02.4]} 12. d5 {[%clk 0:02:59.3]} 12...
exd5 {[%clk 0:02:57.2]} 13. exd5 {[%clk 0:03:01.2]} 13... Bf5 {[%clk 0:02:58]}
14. d6 {[%clk 0:02:46.3]} 14... Qb7 {[%clk 0:02:45.4]} 15. Bd3 {[%clk
0:02:38.9]} 15... Bxd3 {[%clk 0:02:17.7]} 16. Qxd3 {[%clk 0:02:38.6]} 16... f6
{[%clk 0:02:18.5]} 17. Bf4 {[%clk 0:02:36.2]} 17... Nd7 {[%clk 0:02:11.1]} 18.
Rfe1 {[%clk 0:02:36.7]} 18... Rae8 {[%clk 0:02:08.5]} 19. Re7 {[%clk 0:02:30.4]}
19... g5 {[%clk 0:01:27.7]} 20. Rbe1 {[%clk 0:02:19.1]} 20... Rxe7 {[%clk
0:01:25.1]} 21. dxe7 {[%clk 0:02:21]} 21... Re8 {[%clk 0:01:25.3]} 22. Qc4+
{[%clk 0:02:21.4]} 22... Kh8 {[%clk 0:01:26.4]} 23. Qf7 {[%clk 0:02:18.7]} 23...
Qc8 {[%clk 0:01:27]} 24. Bc7 {[%clk 0:02:16.9]} 24... Nb8 {[%clk 0:01:16.6]} 25.
Bxb8 {[%clk 0:01:59.3]} 25... Qxb8 {[%clk 0:01:17.3]} 26. Rd1 {[%clk 0:02:00.2]}
1-0

[Event "*** Titled Tuesday Blitz"]
[Site "Chess.com"]
[Date "2019.08.06"]
[Round "2"]
[White "leclash"]
[Black "dcremisi"]
[Result "0-1"]
[WhiteElo "2204"]
[BlackElo "2374"]
[TimeControl "180+2"]
[EndTime "13:19:55 PDT"]
[Termination "dcremisi won by resignation"]

1. d4 {[%clk 0:03:01.9]} 1... d5 {[%clk 0:02:59.3]} 2. c4 {[%clk 0:03:02]} 2...
c6 {[%clk 0:03:00.4]} 3. Nc3 {[%clk 0:03:03]} 3... e6 {[%clk 0:03:01.1]} 4. e3
{[%clk 0:03:03.9]} 4... Nf6 {[%clk 0:03:02]} 5. Nf3 {[%clk 0:03:04.2]} 5... Nbd7
{[%clk 0:03:02.2]} 6. Bd3 {[%clk 0:03:05.1]} 6... dxc4 {[%clk 0:03:02.9]} 7.
Bxc4 {[%clk 0:03:07]} 7... b5 {[%clk 0:03:04.5]} 8. Bd3 {[%clk 0:03:07.9]} 8...
Bb7 {[%clk 0:03:05.7]} 9. e4 {[%clk 0:03:08.6]} 9... b4 {[%clk 0:03:05.1]} 10.
Na4 {[%clk 0:03:09.2]} 10... c5 {[%clk 0:03:06.3]} 11. e5 {[%clk 0:03:10]} 11...
Nd5 {[%clk 0:03:07.3]} 12. O-O {[%clk 0:03:10.7]} 12... Be7 {[%clk 0:03:07.9]}
13. Nxc5 {[%clk 0:02:55.4]} 13... Nxc5 {[%clk 0:03:07.8]} 14. dxc5 {[%clk
0:02:57.3]} 14... Bxc5 {[%clk 0:03:08.6]} 15. Bb5+ {[%clk 0:02:57.3]} 15... Ke7
{[%clk 0:02:54.5]} 16. Bg5+ {[%clk 0:02:54.1]} 16... f6 {[%clk 0:02:55.5]} 17.
exf6+ {[%clk 0:02:54.6]} 17... gxf6 {[%clk 0:02:57.4]} 18. Re1 {[%clk
0:02:33.9]} 18... fxg5 {[%clk 0:02:55.4]} 19. Nxg5 {[%clk 0:02:35.8]} 19... Nc7
{[%clk 0:02:51.5]} 20. Qg4 {[%clk 0:02:12.4]} 20... Qd4 {[%clk 0:02:36.4]} 21.
Rxe6+ {[%clk 0:01:55.8]} 21... Nxe6 {[%clk 0:02:30.9]} 22. Qxe6+ {[%clk
0:01:56.3]} 22... Kd8 {[%clk 0:02:32]} 23. Kh1 {[%clk 0:01:30.2]} 23... Kc7
{[%clk 0:02:27.7]} 24. Rc1 {[%clk 0:01:08.3]} 24... Rad8 {[%clk 0:02:10.3]} 25.
h4 {[%clk 0:00:34.3]} 25... Kb8 {[%clk 0:02:08.6]} 26. Nf7 {[%clk 0:00:28.9]}
26... Qxh4+ {[%clk 0:02:05.3]} 0-1

[Event "*** Titled Tuesday Blitz"]
[Site "Chess.com"]
[Date "2019.08.06"]
[Round "2"]
[White "BoboHead"]
[Black "Carolina-moon"]
[Result "1-0"]
[WhiteElo "2138"]
[BlackElo "2067"]
[TimeControl "180+2"]
[EndTime "13:20:02 PDT"]
[Termination "BoboHead won on time"]

1. e4 {[%clk 0:02:55]} 1... c5 {[%clk 0:02:58.4]} 2. Nf3 {[%clk 0:02:55.5]} 2...
d6 {[%clk 0:02:59.3]} 3. Bb5+ {[%clk 0:02:55.6]} 3... Nd7 {[%clk 0:02:58.8]} 4.
d4 {[%clk 0:02:56.3]} 4... cxd4 {[%clk 0:02:56.5]} 5. Qxd4 {[%clk 0:02:58.2]}
5... a6 {[%clk 0:02:54.9]} 6. Bxd7+ {[%clk 0:02:59.2]} 6... Bxd7 {[%clk
0:02:55.9]} 7. Bg5 {[%clk 0:03:00.8]} 7... h6 {[%clk 0:02:47.2]} 8. Bh4 {[%clk
0:03:01.4]} 8... Qc7 {[%clk 0:02:40.9]} 9. Nc3 {[%clk 0:02:56.4]} 9... e6 {[%clk
0:02:41.6]} 10. O-O {[%clk 0:02:52.8]} 10... Rc8 {[%clk 0:02:37.4]} 11. Rad1
{[%clk 0:02:40.8]} 11... Qc5 {[%clk 0:02:29.8]} 12. Qd2 {[%clk 0:02:21.1]} 12...
b5 {[%clk 0:02:19.4]} 13. a3 {[%clk 0:01:54.5]} 13... Be7 {[%clk 0:02:04.2]} 14.
Bxe7 {[%clk 0:01:53.4]} 14... Kxe7 {[%clk 0:02:05.8]} 15. e5 {[%clk 0:01:49.9]}
15... d5 {[%clk 0:02:00.3]} 16. Ne4 {[%clk 0:01:49.4]} 16... dxe4 {[%clk
0:01:00.3]} 17. Qxd7+ {[%clk 0:01:50]} 17... Kf8 {[%clk 0:01:01.2]} 18. Nd2
{[%clk 0:01:51.2]} 18... Qc7 {[%clk 0:00:49.6]} 19. Nxe4 {[%clk 0:01:46.1]}
19... Ne7 {[%clk 0:00:47.1]} 20. Qxc7 {[%clk 0:01:44.3]} 1-0